bitfinex/quotes_ETHUSD_20250605
["timestamp","ask_amount","ask_price","bid_price","bid_amount"]
[1749106126335,7.01972275,2602.1,2601.8,1.728]
[1749106126655,7.01972275,2602.1,2601.9,8.144]
[1749106130220,7.01972275,2602.1,2602.0,1.728]
[1749106130452,1.4248,2602.2,2602.0,1.728]
[1749106130831,8.38262275,2602.4,2602.0,1.728]
[1749106131024,9.22088503,2602.4,2602.0,1.728]
[1749106131232,9.22088503,2602.4,2602.1,6.409]
[1749106134961,9.22088503,2602.4,2601.7,9.0]
[1749106135164,2.20116228,2602.4,2602.2,1.728]
[1749106135466,7.01972275,2602.3,2602.2,1.728]
[1749106137161,3.3747638,2602.3,2602.2,1.728]
[1749106138461,3.3747638,2602.5,2602.2,1.728]
[1749106138864,3.3747638,2602.3,2602.2,1.728]
[1749106139066,3.3747638,2602.3,2602.2,8.137]
[1749106139427,3.3747638,2602.3,2601.7,9.0]
[1749106139632,3.3747638,2601.9,2601.7,9.0]
[1749106139836,3.3747638,2601.9,2601.8,8.137]
[1749106140244,3.3747638,2601.9,2601.8,1.728]
[1749106140444,3.3747638,2601.9,2601.8,1.709]
[1749106140666,5.53631656,2601.9,2601.8,1.709]
[1749106141284,9.18427439,2601.9,2601.8,1.709]
[1749106141580,1.4062,2601.8,2601.6,14.698]
[1749106141781,1.4062,2601.8,2601.7,1.709]
[1749106142147,1.4062,2601.8,2600.8,6.10387498]
[1749106142346,1.4062,2601.3,2600.2,15.126106]
[1749106142570,1.4062,2601.3,2600.3,9.996]
[1749106142770,7.02272163,2601.1,2600.3,9.996]
[1749106143284,7.02272163,2601.1,2600.4,1.709]
[1749106143484,7.02272163,2601.1,2600.5,6.409]
[1749106143645,7.02272163,2601.1,2600.6,1.709]
[1749106143851,7.02272163,2601.1,2600.6,8.118]
[1749106145982,1.4998,2601.5,2600.7,5.56192]
[1749106146187,1.4998,2601.5,2600.6,8.118]
[1749106146750,1.4998,2601.5,2600.7,8.119]
[1749106148957,7.02272163,2601.4,2600.5,10.0]
[1749106149157,7.02272163,2601.4,2600.3,8.287]
[1749106149483,7.02272163,2601.1,2600.4,8.119]
[1749106150083,1.3869,2601.0,2600.5,1.709]
[1749106150267,1.3869,2601.0,2600.6,6.41]
[1749106150658,1.3869,2601.0,2600.3,8.287]
[1749106150897,1.3869,2601.0,2600.4,8.119]
[1749106151200,1.3869,2601.0,2600.5,8.119]
[1749106153218,1.3869,2601.0,2600.6,9.998]
[1749106153412,1.3869,2601.0,2600.7,1.709]
[1749106154497,1.3869,2601.0,2600.8,6.41]
[1749106155086,16.45439368,2602.7,2600.8,6.41]
[1749106155270,17.3783,2601.5,2600.8,6.41]
[1749106156520,16.0,2601.2,2600.6,8.289]
[1749106156722,1.4404,2601.1,2600.6,8.289]
[1749106156871,1.4404,2601.1,2600.7,8.119]
[1749106158023,1.4404,2601.1,2600.6,8.289]
[1749106158232,1.4404,2601.1,2600.8,8.119]
[1749106158389,7.02272163,2601.4,2600.8,8.119]
[1749106159421,1.422,2601.3,2600.9,8.119]
[1749106162197,1.422,2601.3,2600.6,8.289]
[1749106162505,1.422,2601.3,2601.0,8.119]
[1749106163076,8.39332163,2601.5,2601.0,8.119]
[1749106163276,3.37623376,2601.3,2601.0,8.119]
[1749106163788,3.37623376,2601.1,2601.0,8.119]
[1749106164323,3.37623376,2601.1,2600.7,16.0]
[1749106164522,1.3706,2601.5,2600.8,8.119]
[1749106164828,3.37623376,2601.4,2600.8,8.119]
[1749106165907,3.37623376,2601.4,2600.9,16.0]
[1749106166413,1.3706,2601.5,2600.9,16.0]
[1749106166586,3.37623376,2601.4,2600.9,16.0]
[1749106168018,3.37623376,2601.4,2601.1,16.0]
[1749106169616,3.37623376,2601.2,2600.7,16.0]
[1749106169816,3.37623376,2601.2,2600.9,0.0965]
[1749106172022,3.37623376,2601.2,2601.1,16.0]
[1749106177857,3.37623376,2601.2,2600.9,0.0965]
[1749106178031,3.37623376,2601.2,2601.1,8.118]
[1749106179124,4.88583376,2601.2,2600.7,16.0965]
[1749106179329,4.88583376,2601.2,2600.8,8.118]
[1749106179736,4.88583376,2601.2,2601.0,16.0]
[1749106179938,3.37623376,2601.1,2600.7,16.0]
[1749106180148,1.5096,2601.2,2600.7,16.0]
[1749106180149,3.37623376,2600.9,2600.8,16.0]
[1749106180365,3.37623376,2600.9,2600.8,24.118]
[1749106180366,2.75253665,2600.9,2600.8,24.118]
[1749106180859,2.75253665,2600.9,2600.8,16.0]
[1749106181058,2.75253665,2600.9,2600.8,24.117]
[1749106181352,2.75253665,2600.9,2600.8,1.709]
[1749106181559,2.75253665,2600.9,2600.8,8.117]
[1749106183427,2.75253665,2600.9,2600.6,8.289]
[1749106183627,2.75253665,2600.9,2600.7,8.117]
[1749106186029,2.75253665,2600.9,2600.6,8.289]
[1749106186230,2.75253665,2600.9,2600.8,8.117]
[1749106186671,4.20263665,2600.9,2600.6,8.289]
[1749106186965,4.20263665,2600.9,2600.8,1.709]
[1749106187279,4.20263665,2600.9,2600.8,8.117]
[1749106187567,4.20263665,2600.9,2600.8,1.709]
[1749106187875,4.20263665,2600.9,2600.6,8.289]
[1749106188023,1.4501,2600.9,2600.8,1.709]
[1749106188370,4.82633376,2600.9,2600.8,8.117]
[1749106189664,4.82633376,2600.9,2600.8,1.709]
[1749106190001,4.82633376,2600.9,2600.8,8.117]
[1749106192160,1.4521,2600.8,2599.9,2.171786]
[1749106192387,1.4521,2600.8,2599.8,0.0965]
[1749106192388,3.37623376,2600.2,2600.0,16.407]
[1749106192588,1.4777,2600.4,2600.0,16.407]
[1749106192589,1.4777,2600.4,2600.0,8.29]
[1749106192759,1.4777,2600.4,2600.1,8.117]
[1749106193088,3.37623376,2600.2,2600.1,1.709]
[1749106193310,3.37623376,2600.2,2600.1,8.117]
[1749106193466,3.37623376,2600.2,2600.1,1.709]
[1749106193665,3.37623376,2600.2,2600.1,8.117]
[1749106194198,3.37623376,2600.2,2600.0,8.29]
[1749106194400,3.37623376,2600.2,2600.1,8.117]
[1749106195087,3.37623376,2600.2,2600.1,1.709]
[1749106195301,4.84173376,2600.2,2600.1,1.709]
[1749106195605,0.55,2600.8,2600.1,8.117]
[1749106195766,3.37623376,2600.5,2600.1,8.117]
[1749106196100,3.37623376,2600.3,2600.0,8.29]
[1749106196292,3.37623376,2600.3,2600.1,8.117]
[1749106196496,3.37623376,2600.5,2600.1,8.117]
[1749106196825,3.37623376,2600.5,2600.2,16.0]
[1749106197312,3.37623376,2600.3,2600.2,16.0]
[1749106198172,1.4374,2600.7,2600.2,16.0]
[1749106198173,3.37623376,2600.5,2600.2,16.0]
[1749106199067,3.37623376,2600.3,2600.1,17.709]
[1749106199395,3.37623376,2600.3,2600.2,8.117]
[1749106201511,3.37623376,2600.5,2600.2,8.117]
[1749106202275,3.37623376,2600.5,2600.3,8.115]
[1749106203491,1.4374,2600.7,2600.3,8.115]
[1749106203690,3.37623376,2600.6,2600.3,8.115]
[1749106205176,3.37623376,2600.6,2599.6,8.47171547]
[1749106205489,3.37623376,2600.6,2599.8,26.304402]
[1749106205831,3.37623376,2600.6,2599.8,8.772281]
[1749106205976,1.536,2601.7,2599.8,8.772281]
[1749106206174,1.536,2601.0,2599.8,8.772281]
[1749106206376,1.536,2601.8,2600.1,3.37623376]
[1749106206575,4.91223376,2601.2,2600.2,30.0]
[1749106206787,3.37623376,2601.3,2600.4,40.0]
[1749106207015,3.37623376,2601.3,2600.4,30.0]
[1749106207419,3.37623376,2601.3,2600.3,1.707]
[1749106207586,3.37623376,2601.3,2600.4,30.0]
[1749106207789,1.536,2601.5,2600.4,30.0]
[1749106207994,1.536,2601.5,2600.6,30.0]
[1749106208320,3.37623376,2601.4,2601.0,0.1089]
[1749106208481,3.37623376,2601.4,2601.1,9.998]
[1749106209622,3.37623376,2601.2,2601.1,25.998]
[1749106210022,3.37623376,2601.2,2601.1,24.291]
[1749106210219,3.71385714,2601.2,2601.1,32.405]
[1749106210515,3.37623376,2601.2,2601.1,32.405]
[1749106210692,3.37623376,2601.2,2601.1,24.291]
[1749106210891,4.86393376,2601.2,2601.1,9.998]
[1749106211301,3.37623376,2601.2,2601.1,9.998]
[1749106212404,3.37623376,2601.2,2601.1,8.291]
[1749106212612,3.86145714,2601.2,2601.1,16.404]
[1749106212775,3.37623376,2601.2,2601.1,32.404]
[1749106215701,3.37623376,2601.2,2601.1,32.403]
[1749106216049,3.37623376,2601.4,2601.2,16.0]
[1749106216242,3.37623376,2601.4,2601.1,16.403]
[1749106216796,4.82403376,2601.6,2601.2,16.0]
[1749106216992,3.37623376,2601.6,2601.2,16.0]
[1749106217456,1.4939,2601.9,2601.2,16.0]
[1749106217600,3.39623376,2601.9,2601.3,0.1089]
[1749106219307,3.39623376,2601.9,2601.1,16.403]
[1749106219632,3.39623376,2601.9,2601.2,24.067564]
[1749106221428,3.39623376,2601.9,2601.5,16.0]
[1749106221630,3.39623376,2601.9,2601.2,16.0]
[1749106221952,0.02,2601.9,2601.5,28.584113]
[1749106222152,3.39623376,2601.9,2601.2,16.0]
[1749106222368,3.39623376,2601.9,2601.3,8.809522]
[1749106224518,0.02,2601.9,2601.3,8.809522]
[1749106225157,0.02,2601.9,2601.2,16.0]
[1749106225158,0.02,2601.9,2601.5,11.519763]
[1749106225449,0.02,2601.9,2601.7,26.0]
[1749106225650,0.02,2601.9,2601.8,1.707]
[1749106226159,3.39623376,2601.9,2601.8,1.707]
[1749106226672,0.02,2601.9,2601.8,1.707]
[1749106227446,0.02,2601.9,2601.8,25.083277]
[1749106228637,0.02,2601.9,2601.8,24.809479]
[1749106229074,0.02,2601.9,2601.8,20.331904]
[1749106229578,0.02,2601.9,2601.8,23.70813776]
[1749106230092,0.0014686,2601.9,2601.8,24.25813776]
[1749106231242,0.0014686,2601.9,2601.8,20.881904]
[1749106232379,0.0014686,2601.9,2601.8,20.328904]
[1749106232585,0.0014686,2601.9,2601.8,26.728904]
[1749106232879,0.0014686,2601.9,2601.8,24.104]
[1749106233084,0.0014686,2601.9,2601.8,8.104]
[1749106236184,0.0014686,2601.9,2601.2,16.0]
[1749106236532,0.0014686,2601.9,2601.4,2.349086]
[1749106236693,0.0014686,2601.9,2601.5,10.0]
[1749106236896,0.0014686,2601.9,2601.5,16.0]
[1749106237098,0.0014686,2601.9,2601.5,12.344899]
[1749106237397,0.0014686,2601.9,2601.5,3.06339586]
[1749106237929,0.0014686,2601.9,2601.6,2.728659]
[1749106238230,0.0014686,2601.9,2601.4,16.0]
[1749106238585,4.84223376,2601.8,2601.1,8.291]
[1749106238785,4.84223376,2601.8,2601.3,6.210572]
[1749106238986,4.84223376,2601.8,2601.3,16.0]
[1749106239296,4.84223376,2601.8,2601.6,16.0]
[1749106239500,4.84223376,2601.8,2601.4,4.534792]
[1749106239700,4.84223376,2601.8,2601.5,1.704]
[1749106239701,3.37623376,2601.6,2601.5,1.704]
[1749106239927,3.37623376,2601.6,2601.5,8.103]
[1749106241936,4.82253376,2601.8,2601.5,8.103]
[1749106242645,4.82253376,2601.8,2601.6,8.102]
[1749106243050,0.48240024,2601.7,2601.2,16.0]
[1749106243247,3.37623376,2601.6,2601.4,16.0]
[1749106244245,3.37623376,2601.6,2601.1,8.291]
[1749106244246,3.37623376,2601.6,2601.2,16.0]
[1749106244408,3.37623376,2601.6,2601.5,8.102]
[1749106247164,3.37623376,2601.6,2601.5,1.704]
[1749106247463,3.37623376,2601.6,2601.5,8.102]
[1749106252579,3.37623376,2601.6,2601.5,8.101]
[1749106253284,3.37623376,2601.6,2601.2,16.0]
[1749106253444,3.37623376,2601.4,2601.2,16.0]
[1749106253643,4.80053376,2601.4,2599.9,3.37623376]
[1749106253866,3.37623376,2601.1,2600.1,24.036816]
[1749106254177,3.37623376,2601.1,2600.6,16.0]
[1749106254497,3.37623376,2601.1,2600.8,2.386531]
[1749106254640,3.37623376,2601.1,2601.0,16.0]
[1749106255846,3.37623376,2601.1,2600.7,1.704]
[1749106256046,3.37623376,2601.3,2601.0,16.0]
[1749106257104,3.37623376,2601.5,2601.0,16.0]
[1749106257306,1.5294,2601.8,2601.2,10.0]
[1749106257492,4.90563376,2601.8,2601.3,9.992]
[1749106257875,3.37623376,2601.6,2601.3,9.992]
[1749106259008,3.37623376,2601.4,2601.3,9.992]
[1749106259210,0.0014686,2601.9,2601.3,9.992]
[1749106259211,1.4831,2601.5,2601.3,16.389]
[1749106262611,1.4831,2601.5,2601.4,8.097]
[1749106263577,3.37623376,2601.6,2601.4,8.097]
[1749106265490,3.37623376,2601.6,2601.5,6.396]
[1749106265690,3.85699714,2601.6,2601.5,6.396]
[1749106267835,1.5588,2601.5,2601.3,8.288]
[1749106268135,1.5588,2601.5,2601.4,1.701]
[1749106269335,4.93503376,2601.5,2601.4,1.701]
[1749106269937,1.5733,2601.4,2601.3,8.288]
[1749106270139,2.61825338,2601.4,2601.3,9.989]
[1749106270634,1.4301,2601.2,2600.9,8.289]
[1749106270838,8.18256752,2601.0,2600.9,8.289]
[1749106271134,8.18256752,2601.0,2600.9,9.991]
[1749106271334,5.62459051,2601.0,2600.9,9.991]
[1749106274537,9.00082427,2601.0,2600.9,9.991]
[1749106274842,5.62459051,2601.0,2600.9,9.991]
[1749106275253,9.00082427,2601.0,2600.9,9.991]
[1749106275404,1.5443,2600.9,2600.8,8.29]
[1749106275747,2.44438243,2600.9,2600.8,9.992]
[1749106276053,1.5443,2600.7,2600.4,8.29]
[1749106276262,1.5443,2600.7,2600.5,1.702]
[1749106276408,3.37623376,2600.6,2600.5,1.702]
[1749106276609,5.36528714,2600.6,2600.5,1.702]
[1749106278040,4.81823376,2600.6,2600.5,1.702]
[1749106278610,1.5526,2600.5,2600.4,8.29]
[1749106278814,1.5526,2600.5,2600.4,16.387]
[1749106280747,2.1026,2600.5,2600.4,16.388]
[1749106282154,4.0026,2600.5,2600.4,16.388]
[1749106282361,4.74048338,2600.5,2600.4,16.388]
[1749106282958,4.19048338,2600.5,2600.4,16.388]
[1749106283131,4.92883376,2600.5,2600.4,16.388]
[1749106288272,4.92883376,2600.5,2600.4,16.387]
[1749106290042,5.47883376,2600.5,2600.4,9.992]
[1749106291979,7.37883376,2600.5,2600.4,9.992]
[1749106292475,7.37883376,2600.5,2600.4,8.29]
[1749106292773,8.11671714,2600.5,2600.4,8.29]
[1749106292972,8.11671714,2600.5,2600.4,9.989]
[1749106298590,0.55,2600.4,2600.2,6.394]
[1749106298899,0.55,2600.4,2600.0,8.293]
[1749106298900,0.55,2600.4,2600.3,8.093]
[1749106299184,2.0884,2600.4,2600.3,1.699]
[1749106299482,1.17788834,2600.4,2600.2,6.394]
[1749106299777,0.55,2600.9,2600.2,6.394]
[1749106299939,8.84086752,2600.3,2600.2,6.394]
[1749106300466,5.46463376,2600.3,2600.2,6.394]
[1749106301141,6.81463376,2600.3,2600.2,6.394]
[1749106302081,5.27623376,2600.3,2600.2,6.394]
[1749106305252,3.37623376,2600.3,2600.2,16.387]
[1749106305459,3.37623376,2600.3,2600.2,9.993]
[1749106306573,3.37623376,2600.3,2599.4,30.0]
[1749106306866,3.37623376,2600.3,2599.6,40.0]
[1749106307046,3.37623376,2600.3,2599.6,30.0]
[1749106308783,3.37623376,2600.3,2599.7,16.0]
[1749106309021,3.37623376,2600.3,2599.7,11.41779]
[1749106309283,3.37623376,2600.3,2599.7,10.949006]
[1749106309587,3.37623376,2600.1,2599.4,11.222308]
[1749106309884,3.37623376,2600.1,2599.8,6.392]
[1749106310061,3.37623376,2600.1,2599.9,6.392]
[1749106310888,3.37623376,2600.1,2599.5,16.0]
[1749106311187,3.37623376,2600.1,2599.1,0.025]
[1749106311496,3.37623376,2600.1,2599.6,3.840326]
[1749106311697,3.37623376,2600.1,2599.5,16.0]
[1749106312008,3.37623376,2599.6,2599.1,0.025]
[1749106312147,3.37623376,2599.8,2599.6,6.391]
[1749106312342,3.37623376,2600.0,2599.6,6.391]
[1749106313464,1.5204,2600.5,2599.6,6.391]
[1749106313702,3.37623376,2600.2,2599.6,6.391]
[1749106314401,3.37623376,2600.4,2599.7,30.0]
[1749106314606,3.37623376,2600.4,2599.7,26.0]
[1749106314897,3.37623376,2600.4,2599.7,30.0]
[1749106315203,1.5082,2600.8,2599.7,30.0]
[1749106315204,3.37623376,2600.6,2599.7,30.0]
[1749106315403,3.37623376,2600.6,2599.8,9.992]
[1749106315901,3.37623376,2600.6,2599.9,16.0]
[1749106317302,3.37623376,2600.7,2600.3,16.0]
[1749106317504,3.37623376,2600.7,2600.5,16.0]
[1749106317694,3.37623376,2600.7,2600.6,1.699]
[1749106320101,3.37623376,2600.9,2600.6,1.699]
[1749106321192,3.37623376,2601.1,2600.7,10.0]
[1749106321808,3.37623376,2600.9,2600.7,10.0]
[1749106322372,3.37623376,2601.1,2600.7,10.0]
[1749106322694,3.37623376,2601.1,2600.8,16.0]
[1749106322897,3.37623376,2601.3,2600.8,16.0]
[1749106323594,3.37623376,2601.3,2600.7,23.558942]
[1749106323901,3.37623376,2601.1,2600.8,16.0]
[1749106324210,3.37623376,2600.9,2600.2,0.55]
[1749106324415,3.37623376,2600.9,2600.4,13.271267]
[1749106324584,3.37623376,2600.9,2600.4,12.701567]
[1749106324785,3.37623376,2600.9,2600.4,12.033097]
[1749106324981,3.37623376,2600.9,2600.4,8.203939]
[1749106325211,3.37623376,2600.9,2600.5,1.696]
[1749106325386,3.37623376,2600.9,2600.6,6.388]
[1749106326015,3.37623376,2600.9,2600.7,8.083]
[1749106326311,3.37623376,2600.9,2600.8,8.083]
[1749106326868,3.37623376,2601.1,2600.8,8.083]
[1749106328833,3.37623376,2601.3,2600.8,8.083]
[1749106329037,3.37623376,2601.3,2600.9,16.0]
[1749106329536,0.0014686,2601.9,2600.9,16.0]
[1749106329939,0.0014686,2601.9,2601.2,3.37623376]
[1749106330236,0.0014686,2601.9,2601.5,16.0]
[1749106330400,0.0014686,2601.9,2601.8,25.496]
[1749106330598,0.0014686,2601.9,2601.8,23.597]
[1749106333939,0.0014686,2601.9,2601.8,22.950084]
[1749106334297,0.0014686,2601.9,2601.8,31.029084]
[1749106343478,0.0014686,2601.9,2601.8,31.579084]
[1749106345768,0.0014686,2601.9,2601.8,31.574084]
[1749106347477,0.0014686,2601.9,2601.8,24.645084]
[1749106347780,0.0014686,2601.9,2601.8,31.024084]
[1749106349084,0.0014686,2601.9,2601.8,26.514762]
[1749106349883,0.0014686,2601.9,2601.8,40.562522]
[1749106350079,0.0014686,2601.9,2601.8,32.564522]
[1749106350284,0.0014686,2601.9,2601.8,40.636522]
[1749106350656,0.0014686,2601.9,2601.8,31.86478]
[1749106350858,0.0014686,2601.9,2601.8,20.266572]
[1749106351192,0.0014686,2601.9,2601.8,28.292368]
[1749106351781,0.0014686,2601.9,2601.8,28.366368]
[1749106351983,0.0014686,2601.9,2601.8,32.29260176]
[1749106352187,0.00012258,2601.9,2601.8,32.29260176]
[1749106352689,0.00012258,2601.9,2601.8,36.13609472]
[1749106353403,0.00012258,2601.9,2601.8,32.29260176]
[1749106355691,0.00012258,2601.9,2601.8,36.13609472]
[1749106356197,0.00012258,2601.9,2601.8,32.29260176]
[1749106356398,0.00012258,2601.9,2601.8,36.13609472]
[1749106356902,4.15705557,2602.9,2602.0,3.84311815]
[1749106357103,4.15705557,2602.9,2602.6,16.074]
[1749106357304,4.13735557,2602.9,2602.8,46.0]
[1749106357502,4.13735557,2602.9,2602.8,39.069019]
[1749106358713,4.13735557,2602.9,2602.8,32.03950076]
[1749106359389,4.13735557,2602.9,2602.8,29.99016676]
[1749106361315,4.13735557,2602.9,2602.8,26.94551976]
[1749106361821,4.13735557,2602.9,2602.8,16.72021376]
[1749106365325,4.12255557,2602.9,2602.8,16.72021376]
[1749106365499,4.12255557,2602.9,2602.8,20.23852576]
[1749106365695,4.09945557,2602.9,2602.8,20.23852576]
[1749106367132,3.47631887,2602.9,2602.8,20.23852576]
[1749106367333,3.47631887,2602.9,2602.8,20.31252576]
[1749106367625,2.26928538,2602.9,2602.8,21.22924435]
[1749106367826,2.26928538,2602.9,2602.8,25.07126064]
[1749106368522,1.48921853,2602.9,2602.8,25.07126064]
[1749106368724,1.39308461,2602.9,2602.8,25.07126064]
[1749106369325,1.37328461,2602.9,2602.8,24.70454205]
[1749106369715,1.37328461,2602.9,2602.8,20.86252576]
[1749106369920,1.37328461,2602.9,2602.8,24.70454205]
[1749106370118,1.37328461,2602.9,2602.8,20.86252576]
[1749106370314,1.37328461,2602.9,2602.8,16.17952576]
[1749106370514,1.37328461,2602.9,2602.8,22.55152576]
[1749106370832,1.37328461,2602.9,2602.8,21.92752576]
[1749106372030,1.37328461,2602.9,2602.8,15.55552576]
[1749106372231,1.37328461,2602.9,2602.8,6.585044]
[1749106372436,1.37328461,2602.9,2602.8,12.957044]
[1749106372635,1.37328461,2602.9,2602.8,20.894044]
[1749106372830,1.37328461,2602.9,2602.8,28.956044]
[1749106373824,1.35608461,2602.9,2602.8,28.956044]
[1749106376997,0.73300354,2602.9,2602.8,28.956044]
[1749106378108,0.73300354,2602.9,2602.8,32.95627776]
[1749106378350,0.73300354,2602.9,2602.8,29.030044]
[1749106378560,0.73300354,2602.9,2602.8,28.956044]
[1749106378709,0.73300354,2602.9,2602.8,20.32699171]
[1749106378910,0.71810354,2602.9,2602.8,20.32699171]
[1749106379131,0.71810354,2602.9,2602.8,49.95451071]
[1749106380410,0.71810354,2602.9,2602.8,26.22516671]
[1749106380615,2.27070354,2602.9,2602.8,18.71603771]
[1749106380849,2.27070354,2602.9,2602.8,25.08603771]
[1749106381623,2.27070354,2602.9,2602.8,20.32499171]
[1749106381830,2.27070354,2602.9,2602.8,12.727712]
[1749106383151,0.71810354,2602.9,2602.8,12.727712]
[1749106383325,0.69840354,2602.9,2602.8,12.727712]
[1749106383531,0.69840354,2602.9,2602.8,10.287712]
[1749106383851,0.69840354,2602.9,2602.8,26.287712]
[1749106387117,0.69840354,2602.9,2602.8,33.609722]
[1749106387350,0.08695229,2602.9,2602.8,30.441722]
[1749106388761,0.08695229,2602.9,2602.8,29.409712]
[1749106389159,0.08695229,2602.9,2602.8,23.039712]
[1749106389356,0.08695229,2602.9,2602.8,29.408712]
[1749106389859,0.08695229,2602.9,2602.8,13.405712]
[1749106390164,1.5434,2603.1,2602.8,8.056]
[1749106390328,0.49196338,2603.0,2602.8,8.056]
[1749106390736,0.49196338,2603.0,2602.9,6.369]
[1749106391033,1.5434,2603.1,2602.9,8.056]
[1749106391258,1.5434,2603.1,2603.0,6.369]
[1749106391970,1.5434,2603.1,2603.0,1.687]
[1749106393280,1.5434,2603.1,2603.0,8.055]
[1749106394665,2.03536338,2603.1,2603.0,8.055]
[1749106395352,2.03536338,2603.1,2603.0,16.337]
[1749106395847,0.49196338,2603.1,2603.0,9.969]
[1749106396049,3.37623376,2603.1,2603.0,9.969]
[1749106396447,4.88363376,2603.1,2603.0,9.969]
[1749106397161,4.88363376,2603.1,2603.0,16.337]
[1749106397472,1.5074,2603.1,2603.0,16.337]
[1749106397935,1.5563,2603.4,2603.1,7.615158]
[1749106398271,1.5563,2603.4,2603.0,16.337]
[1749106401550,1.4543,2603.6,2603.0,16.337]
[1749106402274,1.93735338,2603.6,2603.0,16.337]
[1749106402837,1.93735338,2603.6,2602.7,40.0]
[1749106403045,1.93735338,2603.6,2602.7,30.0]
[1749106403046,1.4543,2603.6,2602.7,30.0]
[1749106403953,1.4543,2603.6,2602.9,40.0]
[1749106404247,1.4543,2603.6,2602.9,30.0]
[1749106404447,1.4543,2603.6,2602.9,25.922614]
[1749106405265,1.4543,2603.6,2603.0,9.969]
[1749106405446,1.4543,2603.6,2603.1,12.277616]
[1749106405652,1.5462,2603.5,2603.2,6.366]
[1749106408489,1.5462,2603.5,2603.3,16.0]
[1749106409258,2.03844338,2603.5,2603.4,22.365]
[1749106410198,2.03844338,2603.5,2603.4,16.0]
[1749106410399,2.03844338,2603.5,2603.4,17.687]
[1749106410580,2.03844338,2603.5,2603.4,16.0]
[1749106410891,2.03844338,2603.5,2603.4,24.052]
[1749106411395,2.03844338,2603.5,2603.4,8.052]
[1749106412292,2.03844338,2603.5,2603.4,1.687]
[1749106412495,2.03844338,2603.5,2603.4,8.052]
[1749106413999,4.92243376,2603.5,2603.4,8.052]
[1749106416298,4.92243376,2603.5,2603.4,16.334]
[1749106418869,1.5462,2603.5,2603.4,16.334]
[1749106419179,4.92243376,2603.5,2603.4,16.334]
[1749106419382,4.92243376,2603.5,2603.4,9.967]
[1749106420601,4.92243376,2603.5,2603.4,16.33]
[1749106421183,5.41467714,2603.5,2603.4,16.33]
[1749106422194,5.41467714,2603.5,2603.4,9.967]
[1749106422821,5.96467714,2603.5,2603.4,9.967]
[1749106423920,7.86467714,2603.5,2603.4,9.967]
[1749106425220,7.31467714,2603.5,2603.4,9.967]
[1749106425727,7.86467714,2603.5,2603.4,9.967]
[1749106426128,7.86467714,2603.5,2603.4,8.283]
[1749106426292,7.86467714,2603.5,2603.4,9.967]
[1749106429346,7.31467714,2603.5,2603.4,9.967]
[1749106430915,5.41467714,2603.5,2603.4,9.967]
[1749106431113,5.96467714,2603.5,2603.4,8.283]
[1749106431325,1.5208,2603.4,2603.1,8.283]
[1749106431523,2.0708,2603.1,2603.0,14.644]
[1749106431746,5.44703376,2603.1,2603.0,8.045]
[1749106432127,2.0708,2603.1,2603.0,1.684]
[1749106432455,5.44703376,2603.1,2603.0,1.684]
[1749106432630,5.99173714,2603.1,2603.0,1.684]
[1749106433652,5.99173714,2603.1,2602.0,0.129]
[1749106433869,3.37623376,2602.4,2602.1,6.361]
[1749106434031,3.37623376,2602.4,2602.0,0.129]
[1749106434415,3.37623376,2602.4,2602.2,16.0]
[1749106434650,3.37623376,2602.4,2602.0,0.129]
[1749106434833,5.01913376,2602.6,2602.4,16.0]
[1749106435153,3.37623376,2602.6,2602.4,16.0]
[1749106435333,1.6092,2603.0,2602.6,16.0]
[1749106435530,3.37623376,2602.8,2602.6,16.0]
[1749106436866,1.5394,2602.7,2602.5,9.968]
[1749106437050,1.5394,2602.7,2602.6,6.361]
[1749106437975,1.5394,2602.7,2602.6,1.684]
[1749106438132,1.5394,2602.7,2602.6,8.045]
[1749106438333,4.91563376,2602.7,2602.6,8.045]
[1749106438568,5.40719714,2602.7,2602.6,8.045]
[1749106440663,4.91563376,2602.7,2602.6,8.045]
[1749106443467,3.37623376,2602.7,2602.6,8.045]
[1749106445272,3.37623376,2602.7,2602.6,8.044]
[1749106445994,1.6483,2602.6,2602.5,24.284]
[1749106446190,1.6483,2602.6,2602.5,16.326]
[1749106446490,5.02453376,2602.6,2602.5,16.326]
[1749106446806,5.52698714,2602.6,2602.5,16.326]
[1749106448978,5.52698714,2602.6,2602.5,9.966]
[1749106449295,5.52698714,2602.6,2602.5,16.326]
[1749106451197,5.52698714,2602.6,2602.5,16.325]
[1749106451395,5.52698714,2602.6,2602.5,8.285]
[1749106451698,5.52698714,2602.6,2602.5,16.325]
[1749106451916,6.07698714,2602.6,2602.5,9.966]
[1749106452623,7.97698714,2602.6,2602.5,9.966]
[1749106453119,3.37623376,2601.8,2600.9,30.0]
[1749106453313,3.37623376,2601.8,2600.9,23.280703]
[1749106454186,3.37623376,2601.8,2601.1,33.301992]
[1749106454481,3.37623376,2601.8,2601.1,23.301992]
[1749106454982,3.37623376,2601.8,2601.2,16.0]
[1749106455404,3.37623376,2601.8,2601.4,16.0]
[1749106455810,3.37623376,2601.6,2601.5,1.681]
[1749106456017,3.37623376,2601.6,2601.5,8.04]
[1749106459908,3.37623376,2601.6,2601.5,1.681]
[1749106460109,3.37623376,2601.6,2601.5,8.04]
[1749106461735,3.37623376,2601.6,2601.5,24.04]
[1749106462315,3.37623376,2601.6,2601.5,24.039]
[1749106463410,3.37623376,2601.6,2601.5,16.0]
[1749106463611,3.37623376,2601.6,2601.5,24.039]
[1749106464233,1.5209,2602.1,2601.5,24.039]